[Event "Early-Titled-Tuesday-Blitz-October-10-2023"]
[Site "Chess.com"]
[Date "2023.10.10"]
[Round "9"]
[White "JuniorJumper"]
[Black "MdChess1734"]
[Result "0-1"]
[WhiteElo "2571"]
[BlackElo "2392"]
[TimeControl "180+1"]
[EndTime "9:45:28 PDT"]
[Termination "MdChess1734 won by checkmate"]

1. d4 {[%clk 0:02:48.2]} 1... Nf6 {[%clk 0:02:54.9]} 2. c4 {[%clk 0:02:47.8]}
2... e6 {[%clk 0:02:54.1]} 3. Nc3 {[%clk 0:02:48.3]} 3... Bb4 {[%clk 0:02:53.7]}
4. Bd2 {[%clk 0:02:49]} 4... b6 {[%clk 0:02:41.8]} 5. e3 {[%clk 0:02:48.6]} 5...
Bb7 {[%clk 0:02:41.5]} 6. Nf3 {[%clk 0:02:49.3]} 6... O-O {[%clk 0:02:40.2]} 7.
Bd3 {[%clk 0:02:49.9]} 7... Bxc3 {[%clk 0:02:37.1]} 8. Bxc3 {[%clk 0:02:50.8]}
8... Ne4 {[%clk 0:02:37.6]} 9. Bxe4 {[%clk 0:02:51.3]} 9... Bxe4 {[%clk
0:02:37.2]} 10. d5 {[%clk 0:02:52.1]} 10... f6 {[%clk 0:01:48.8]} 11. Qd4 {[%clk
0:02:18.5]} 11... Bg6 {[%clk 0:01:17.6]} 12. dxe6 {[%clk 0:01:39.3]} 12... dxe6
{[%clk 0:01:16.8]} 13. O-O-O {[%clk 0:01:39.8]} 13... Qe7 {[%clk 0:01:02.2]} 14.
h4 {[%clk 0:01:26.7]} 14... Nc6 {[%clk 0:00:44.6]} 15. Qd7 {[%clk 0:01:25.8]}
15... Qc5 {[%clk 0:00:16]} 16. Qxe6+ {[%clk 0:01:10.9]} 16... Bf7 {[%clk
0:00:15.2]} 17. Qe4 {[%clk 0:01:11.4]} 17... Rfe8 {[%clk 0:00:13.5]} 18. Qc2
{[%clk 0:01:08.6]} 18... Bxc4 {[%clk 0:00:12.9]} 19. Bd4 {[%clk 0:00:56.1]}
19... Qb5 {[%clk 0:00:13]} 20. b3 {[%clk 0:00:55.4]} 20... Bf7 {[%clk 0:00:12]}
21. Qd3 {[%clk 0:00:48.3]} 21... Qa5 {[%clk 0:00:10.1]} 22. Kb1 {[%clk
0:00:39.2]} 22... Rad8 {[%clk 0:00:08.7]} 23. Qc3 {[%clk 0:00:37.5]} 23... Nb4
{[%clk 0:00:07.9]} 24. Rd2 {[%clk 0:00:37.3]} 24... c5 {[%clk 0:00:07.8]} 25. a3
{[%clk 0:00:33.4]} 25... Qxa3 {[%clk 0:00:07.3]} 26. Qb2 {[%clk 0:00:33.3]}
26... Qxb3 {[%clk 0:00:06.5]} 27. Qxb3 {[%clk 0:00:25]} 27... Bxb3 {[%clk
0:00:07]} 28. Bc3 {[%clk 0:00:25.9]} 28... Nd3 {[%clk 0:00:06.7]} 29. Ne1 {[%clk
0:00:21.8]} 29... Nxe1 {[%clk 0:00:03.5]} 30. Rxe1 {[%clk 0:00:22.7]} 30... Rxd2
{[%clk 0:00:03.4]} 31. Bxd2 {[%clk 0:00:23.6]} 31... Rd8 {[%clk 0:00:04.1]} 32.
Kc1 {[%clk 0:00:24.5]} 32... Bc4 {[%clk 0:00:04.5]} 33. e4 {[%clk 0:00:24.5]}
33... b5 {[%clk 0:00:04.5]} 34. e5 {[%clk 0:00:25]} 34... fxe5 {[%clk
0:00:04.4]} 35. Rxe5 {[%clk 0:00:25.1]} 35... Bd5 {[%clk 0:00:04.1]} 36. Re7
{[%clk 0:00:24.2]} 36... c4 {[%clk 0:00:03.9]} 37. Rxa7 {[%clk 0:00:24.4]} 37...
Rc8 {[%clk 0:00:02.8]} 38. Bc3 {[%clk 0:00:24.7]} 38... Kf8 {[%clk 0:00:03.1]}
39. Bxg7+ {[%clk 0:00:23]} 39... Ke8 {[%clk 0:00:02.6]} 40. Bc3 {[%clk
0:00:23.7]} 40... Bf7 {[%clk 0:00:02.9]} 41. Bb4 {[%clk 0:00:23.1]} 41... Bd5
{[%clk 0:00:02.9]} 42. Re7+ {[%clk 0:00:23.4]} 42... Kd8 {[%clk 0:00:02.8]} 43.
Rxh7 {[%clk 0:00:22.9]} 43... Bxg2 {[%clk 0:00:03.3]} 44. Kd2 {[%clk 0:00:19.7]}
44... Be4 {[%clk 0:00:03.6]} 45. Rg7 {[%clk 0:00:19.3]} 45... Bd3 {[%clk
0:00:03.7]} 46. Kc3 {[%clk 0:00:19.5]} 46... Rb8 {[%clk 0:00:03.4]} 47. Rg8+
{[%clk 0:00:17.6]} 47... Kc7 {[%clk 0:00:03.8]} 48. Bd6+ {[%clk 0:00:18]} 48...
Kxd6 {[%clk 0:00:04.3]} 49. Rxb8 {[%clk 0:00:18.7]} 49... Kc5 {[%clk 0:00:04.8]}
50. Rc8+ {[%clk 0:00:19.3]} 50... Kb6 {[%clk 0:00:04.7]} 51. Kb4 {[%clk
0:00:19.7]} 51... Bf5 {[%clk 0:00:03.9]} 52. h5 {[%clk 0:00:19.5]} 52... Bxc8
{[%clk 0:00:04.1]} 53. h6 {[%clk 0:00:20.4]} 53... Bf5 {[%clk 0:00:04.7]} 54. f4
{[%clk 0:00:21.2]} 54... Bh7 {[%clk 0:00:04.9]} 55. Kc3 {[%clk 0:00:21.1]} 55...
Kc5 {[%clk 0:00:05]} 56. Kd2 {[%clk 0:00:21.8]} 56... b4 {[%clk 0:00:05.7]} 57.
Ke3 {[%clk 0:00:20.9]} 57... b3 {[%clk 0:00:05.6]} 58. f5 {[%clk 0:00:21.2]}
58... Bxf5 {[%clk 0:00:05.4]} 59. Kf4 {[%clk 0:00:21.6]} 59... Bh7 {[%clk
0:00:05.4]} 60. Kg5 {[%clk 0:00:22.2]} 60... b2 {[%clk 0:00:05.7]} 61. Kf6
{[%clk 0:00:23.1]} 61... b1=Q {[%clk 0:00:06.1]} 62. Ke7 {[%clk 0:00:24]} 62...
Qg6 {[%clk 0:00:06.2]} 63. Kf8 {[%clk 0:00:23.4]} 63... Qf6+ {[%clk 0:00:05.7]}
64. Ke8 {[%clk 0:00:23.5]} 64... Bg6+ {[%clk 0:00:05.9]} 65. Kd7 {[%clk
0:00:24.1]} 65... Bf5+ {[%clk 0:00:05.4]} 66. Kc7 {[%clk 0:00:24.7]} 66... Qd6+
{[%clk 0:00:05]} 67. Kb7 {[%clk 0:00:24.7]} 67... Qc6+ {[%clk 0:00:05.5]} 68.
Kb8 {[%clk 0:00:24.9]} 68... Qc8+ {[%clk 0:00:05.1]} 69. Ka7 {[%clk 0:00:25.8]}
69... Kc6 {[%clk 0:00:05.6]} 70. h7 {[%clk 0:00:25.1]} 70... Qb7# {[%clk
0:00:06.2]} 0-1

[Event "Early-Titled-Tuesday-Blitz-October-10-2023"]
[Site "Chess.com"]
[Date "2023.10.10"]
[Round "9"]
[White "VOneChess"]
[Black "Alenzer"]
[Result "1-0"]
[WhiteElo "2249"]
[BlackElo "2110"]
[TimeControl "180+1"]
[EndTime "9:46:24 PDT"]
[Termination "VOneChess won by resignation"]

1. e4 {[%clk 0:03:00.3]} 1... c5 {[%clk 0:02:59.7]} 2. Nf3 {[%clk 0:02:59.2]}
2... e6 {[%clk 0:02:59.7]} 3. d4 {[%clk 0:02:59.1]} 3... cxd4 {[%clk 0:02:59.9]}
4. Nxd4 {[%clk 0:02:59.2]} 4... Nf6 {[%clk 0:02:59.5]} 5. Nc3 {[%clk 0:02:59.3]}
5... Nc6 {[%clk 0:03:00]} 6. Ndb5 {[%clk 0:02:55.8]} 6... Bb4 {[%clk 0:02:57.8]}
7. a3 {[%clk 0:02:53]} 7... Bxc3+ {[%clk 0:02:57.8]} 8. Nxc3 {[%clk 0:02:53.9]}
8... d5 {[%clk 0:02:58.3]} 9. exd5 {[%clk 0:02:51.8]} 9... exd5 {[%clk
0:02:57.4]} 10. Bd3 {[%clk 0:02:48.7]} 10... O-O {[%clk 0:02:56.5]} 11. O-O
{[%clk 0:02:49.2]} 11... Ne5 {[%clk 0:02:49.3]} 12. Bg5 {[%clk 0:02:46.4]} 12...
Nxd3 {[%clk 0:02:26.4]} 13. Qxd3 {[%clk 0:02:47.3]} 13... Be6 {[%clk 0:02:20.6]}
14. Rad1 {[%clk 0:02:43.3]} 14... h6 {[%clk 0:02:20.6]} 15. Bxf6 {[%clk
0:02:42.1]} 15... Qxf6 {[%clk 0:02:20.6]} 16. Nxd5 {[%clk 0:02:42.5]} 16... Qxb2
{[%clk 0:02:20.5]} 17. Nf4 {[%clk 0:02:29.1]} 17... Rfe8 {[%clk 0:02:02.4]} 18.
Rfe1 {[%clk 0:02:25.8]} 18... Rad8 {[%clk 0:01:52.5]} 19. Qxd8 {[%clk
0:02:22.7]} 19... Rxd8 {[%clk 0:01:52.6]} 20. Rxd8+ {[%clk 0:02:22.5]} 20... Kh7
{[%clk 0:01:53.2]} 21. h4 {[%clk 0:02:03.5]} 21... Qb6 {[%clk 0:01:07.6]} 22.
Nxe6 {[%clk 0:01:47.8]} 22... fxe6 {[%clk 0:01:06.8]} 23. Re8 {[%clk 0:01:48.1]}
23... Qc6 {[%clk 0:00:58.3]} 24. R8xe6 {[%clk 0:01:43.6]} 24... Qxc2 {[%clk
0:00:58.3]} 25. Re7 {[%clk 0:01:42.4]} 25... Qb2 {[%clk 0:00:49.5]} 26. R1e3
{[%clk 0:01:32.6]} 26... Qc1+ {[%clk 0:00:45.8]} 27. Kh2 {[%clk 0:01:30.7]}
27... Qc6 {[%clk 0:00:46.2]} 28. R7e6 {[%clk 0:01:24.5]} 28... Qc7+ {[%clk
0:00:43.8]} 29. Kh3 {[%clk 0:01:14.8]} 29... Qc1 {[%clk 0:00:41.8]} 30. Re7
{[%clk 0:01:09.4]} 30... Qc8+ {[%clk 0:00:40.6]} 31. Kh2 {[%clk 0:01:05.6]}
31... Qc4 {[%clk 0:00:30.5]} 32. g3 {[%clk 0:00:58.9]} 32... Qc2 {[%clk
0:00:30.3]} 33. Rf3 {[%clk 0:00:55]} 33... b5 {[%clk 0:00:20.3]} 34. Rff7 {[%clk
0:00:48.9]} 34... a5 {[%clk 0:00:15.2]} 35. Rxg7+ {[%clk 0:00:46.6]} 35... Kh8
{[%clk 0:00:15.6]} 36. Rgf7 {[%clk 0:00:41.9]} 36... Kg8 {[%clk 0:00:15.9]} 37.
Rc7 {[%clk 0:00:39.5]} 37... Qd2 {[%clk 0:00:11.1]} 38. Rg7+ {[%clk 0:00:25.3]}
38... Kf8 {[%clk 0:00:11]} 39. Rgf7+ {[%clk 0:00:08.7]} 39... Ke8 {[%clk
0:00:10.6]} 40. Rf4 {[%clk 0:00:09.1]} 40... b4 {[%clk 0:00:09.5]} 41. axb4
{[%clk 0:00:09.1]} 41... axb4 {[%clk 0:00:09.8]} 42. Rb7 {[%clk 0:00:09.7]}
42... b3 {[%clk 0:00:06.6]} 43. Rxb3 {[%clk 0:00:09.8]} 43... Qd6 {[%clk
0:00:06.2]} 44. Re3+ {[%clk 0:00:10]} 44... Kd8 {[%clk 0:00:04.2]} 45. Ree4
{[%clk 0:00:10.9]} 45... Qc5 {[%clk 0:00:03.4]} 46. Rd4+ {[%clk 0:00:10.7]}
46... Ke7 {[%clk 0:00:04.1]} 47. Rde4+ {[%clk 0:00:10.7]} 47... Kd6 {[%clk
0:00:03.9]} 48. Re3 {[%clk 0:00:09.3]} 48... Qc2 {[%clk 0:00:03.2]} 49. Rf8
{[%clk 0:00:08.9]} 49... Kd7 {[%clk 0:00:02.9]} 50. Rf7+ {[%clk 0:00:08.8]}
50... Kd6 {[%clk 0:00:03.3]} 51. Rf6+ {[%clk 0:00:09.2]} 51... Kd5 {[%clk
0:00:04]} 52. Ref3 {[%clk 0:00:07.1]} 52... Ke4 {[%clk 0:00:04]} 53. R3f4+
{[%clk 0:00:07.2]} 53... Ke5 {[%clk 0:00:04.6]} 54. Rxh6 {[%clk 0:00:06.6]}
54... Kd5 {[%clk 0:00:04.2]} 55. Rh5+ {[%clk 0:00:06.9]} 55... Ke6 {[%clk
0:00:04.2]} 56. Rg5 {[%clk 0:00:07.4]} 56... Kd6 {[%clk 0:00:03.4]} 57. Rgf5
{[%clk 0:00:06.9]} 57... Ke6 {[%clk 0:00:03.8]} 58. Rf6+ {[%clk 0:00:07.1]}
58... Ke5 {[%clk 0:00:04.1]} 59. R6f5+ {[%clk 0:00:06.4]} 59... Ke6 {[%clk
0:00:04.5]} 60. h5 {[%clk 0:00:05.9]} 60... Qc7 {[%clk 0:00:03.1]} 61. Rf6+
{[%clk 0:00:06]} 61... Ke5 {[%clk 0:00:03.2]} 62. h6 {[%clk 0:00:06.1]} 62...
Qh7 {[%clk 0:00:03.4]} 63. R6f5+ {[%clk 0:00:05]} 63... Ke6 {[%clk 0:00:03.7]}
64. Rf6+ {[%clk 0:00:05.5]} 64... Ke5 {[%clk 0:00:03.9]} 65. Rb6 {[%clk
0:00:04.7]} 65... Kd5 {[%clk 0:00:02.8]} 66. Rb5+ {[%clk 0:00:04.8]} 66... Ke6
{[%clk 0:00:03.2]} 67. Rbf5 {[%clk 0:00:04]} 67... Ke7 {[%clk 0:00:03.4]} 68.
Rf6 {[%clk 0:00:04]} 68... Ke8 {[%clk 0:00:03.1]} 69. Rf8+ {[%clk 0:00:04]}
69... Ke7 {[%clk 0:00:03.6]} 70. R4f7+ {[%clk 0:00:04.5]} 70... Qxf7 {[%clk
0:00:04]} 71. Rxf7+ {[%clk 0:00:05.4]} 71... Kxf7 {[%clk 0:00:04.9]} 72. Kh3
{[%clk 0:00:05.8]} 72... Kg6 {[%clk 0:00:05.8]} 73. Kg4 {[%clk 0:00:06.4]} 73...
Kxh6 {[%clk 0:00:06.2]} 74. f4 {[%clk 0:00:07.3]} 74... Kg6 {[%clk 0:00:07.1]}
75. f5+ {[%clk 0:00:07.8]} 75... Kf6 {[%clk 0:00:08]} 76. Kf4 {[%clk 0:00:08.5]}
76... Kf7 {[%clk 0:00:08.6]} 77. g4 {[%clk 0:00:09]} 77... Kg7 {[%clk
0:00:09.1]} 78. g5 {[%clk 0:00:09.3]} 78... Kf7 {[%clk 0:00:09.9]} 79. Ke5
{[%clk 0:00:10]} 79... Kg7 {[%clk 0:00:10.8]} 80. Ke6 {[%clk 0:00:10.4]} 80...
Kf8 {[%clk 0:00:11.4]} 81. f6 {[%clk 0:00:10.7]} 81... Ke8 {[%clk 0:00:11.9]}
82. f7+ {[%clk 0:00:09]} 82... Kf8 {[%clk 0:00:12.8]} 83. g6 {[%clk 0:00:09.6]}
83... Kg7 {[%clk 0:00:12.3]} 84. Ke7 {[%clk 0:00:10.3]} 1-0

[Event "Early-Titled-Tuesday-Blitz-October-10-2023"]
[Site "Chess.com"]
[Date "2023.10.10"]
[Round "9"]
[White "ZeGood_ZeBad_ZeUgly"]
[Black "noblerone"]
[Result "1/2-1/2"]
[WhiteElo "2331"]
[BlackElo "2450"]
[TimeControl "180+1"]
[EndTime "9:46:35 PDT"]
[Termination "Game drawn by repetition"]

1. e4 {[%clk 0:03:00.9]} 1... c5 {[%clk 0:02:58.4]} 2. Nf3 {[%clk 0:03:00.6]}
2... e6 {[%clk 0:02:58.6]} 3. g3 {[%clk 0:02:54.5]} 3... Nc6 {[%clk 0:02:55.9]}
4. d3 {[%clk 0:02:52.9]} 4... Nf6 {[%clk 0:02:53.6]} 5. Bg2 {[%clk 0:02:52.7]}
5... d5 {[%clk 0:02:53.9]} 6. Nbd2 {[%clk 0:02:52.2]} 6... Be7 {[%clk
0:02:45.1]} 7. O-O {[%clk 0:02:51.8]} 7... O-O {[%clk 0:02:41.3]} 8. Re1 {[%clk
0:02:50.4]} 8... b5 {[%clk 0:02:38.5]} 9. e5 {[%clk 0:02:27]} 9... Nd7 {[%clk
0:02:38]} 10. c4 {[%clk 0:02:27.7]} 10... Qb6 {[%clk 0:02:26.1]} 11. b3 {[%clk
0:02:20.8]} 11... a5 {[%clk 0:02:21.4]} 12. Bb2 {[%clk 0:02:07.9]} 12... Bb7
{[%clk 0:02:09.2]} 13. Qe2 {[%clk 0:01:58.7]} 13... bxc4 {[%clk 0:02:06.8]} 14.
dxc4 {[%clk 0:01:57.7]} 14... d4 {[%clk 0:02:06.9]} 15. h4 {[%clk 0:01:46]}
15... a4 {[%clk 0:02:04.7]} 16. Qd3 {[%clk 0:01:26.9]} 16... Nb4 {[%clk
0:01:55.6]} 17. Qb1 {[%clk 0:01:17.8]} 17... axb3 {[%clk 0:01:30]} 18. axb3
{[%clk 0:01:16.6]} 18... Rxa1 {[%clk 0:01:28.9]} 19. Bxa1 {[%clk 0:01:17.5]}
19... Ra8 {[%clk 0:01:10.4]} 20. Ng5 {[%clk 0:01:13.5]} 20... Nf8 {[%clk
0:01:01.2]} 21. Bxb7 {[%clk 0:01:00.1]} 21... Qxb7 {[%clk 0:01:02.1]} 22. Nge4
{[%clk 0:00:55.8]} 22... h6 {[%clk 0:00:54.3]} 23. Bb2 {[%clk 0:00:42.8]} 23...
Nc6 {[%clk 0:00:43.4]} 24. Qd3 {[%clk 0:00:36.5]} 24... Ra2 {[%clk 0:00:41.2]}
25. Rb1 {[%clk 0:00:30.5]} 25... Nxe5 {[%clk 0:00:38.7]} 26. Qe2 {[%clk
0:00:25.3]} 26... Ned7 {[%clk 0:00:30.7]} 27. Qf3 {[%clk 0:00:21.6]} 27... Qc7
{[%clk 0:00:20.4]} 28. b4 {[%clk 0:00:20.4]} 28... Ng6 {[%clk 0:00:10.6]} 29.
bxc5 {[%clk 0:00:16.9]} 29... Bxc5 {[%clk 0:00:11.5]} 30. Nxc5 {[%clk
0:00:16.3]} 30... Qxc5 {[%clk 0:00:11.6]} 31. Qb3 {[%clk 0:00:15.4]} 31... Ra8
{[%clk 0:00:10.6]} 32. Ne4 {[%clk 0:00:16]} 32... Qc6 {[%clk 0:00:10.1]} 33. Qd3
{[%clk 0:00:13.2]} 33... Rb8 {[%clk 0:00:09.4]} 34. Bxd4 {[%clk 0:00:12.8]}
34... Rxb1+ {[%clk 0:00:08.5]} 35. Qxb1 {[%clk 0:00:13.7]} 35... e5 {[%clk
0:00:08.2]} 36. Be3 {[%clk 0:00:11.4]} 36... Qxc4 {[%clk 0:00:05.7]} 37. Nd6
{[%clk 0:00:11.7]} 37... Qe6 {[%clk 0:00:04.8]} 38. Nf5 {[%clk 0:00:09.8]} 38...
e4 {[%clk 0:00:02.9]} 39. Nd4 {[%clk 0:00:09.1]} 39... Qd5 {[%clk 0:00:02.9]}
40. Ne2 {[%clk 0:00:08.2]} 40... Nge5 {[%clk 0:00:03.1]} 41. Nc3 {[%clk
0:00:08]} 41... Nf3+ {[%clk 0:00:03.6]} 42. Kg2 {[%clk 0:00:07.7]} 42... Qe6
{[%clk 0:00:04.5]} 43. Qxe4 {[%clk 0:00:07.1]} 43... Ne1+ {[%clk 0:00:02.6]} 44.
Kf1 {[%clk 0:00:06.6]} 44... Qxe4 {[%clk 0:00:02.8]} 45. Nxe4 {[%clk 0:00:07.5]}
45... Nd3 {[%clk 0:00:03.1]} 46. Bd4 {[%clk 0:00:06.5]} 46... N3e5 {[%clk
0:00:03.3]} 47. Ke2 {[%clk 0:00:06]} 47... Nc4 {[%clk 0:00:02.5]} 48. f4 {[%clk
0:00:04.5]} 48... Ncb6 {[%clk 0:00:03]} 49. Kd3 {[%clk 0:00:04.7]} 49... Nd5
{[%clk 0:00:03.4]} 50. Kc4 {[%clk 0:00:04.2]} 50... Ne7 {[%clk 0:00:03.8]} 51.
Kb5 {[%clk 0:00:04.1]} 51... Nf5 {[%clk 0:00:04.2]} 52. Kc6 {[%clk 0:00:03.3]}
52... Nxd4+ {[%clk 0:00:03.2]} 53. Kxd7 {[%clk 0:00:03.4]} 53... Nf5 {[%clk
0:00:04]} 54. Ke8 {[%clk 0:00:02.4]} 54... g6 {[%clk 0:00:03.9]} 55. Kd7 {[%clk
0:00:02]} 55... Kg7 {[%clk 0:00:04.4]} 56. Ke8 {[%clk 0:00:02.4]} 56... h5
{[%clk 0:00:05]} 57. Kd7 {[%clk 0:00:02.3]} 57... Nd4 {[%clk 0:00:05.3]} 58. Ke8
{[%clk 0:00:02.4]} 58... Nf5 {[%clk 0:00:06]} 59. Kd7 {[%clk 0:00:02.8]} 59...
f6 {[%clk 0:00:06.3]} 60. Ke6 {[%clk 0:00:02.6]} 60... Nd4+ {[%clk 0:00:05.9]}
61. Kd5 {[%clk 0:00:03.2]} 61... Ne2 {[%clk 0:00:06.5]} 62. Ke6 {[%clk
0:00:02.8]} 62... Nd4+ {[%clk 0:00:06.2]} 63. Kd5 {[%clk 0:00:02.8]} 63... Nf3
{[%clk 0:00:07.1]} 64. Ke6 {[%clk 0:00:02.8]} 64... Nh2 {[%clk 0:00:07]} 65.
Nxf6 {[%clk 0:00:02.6]} 65... Nf1 {[%clk 0:00:06.3]} 66. Ne4 {[%clk 0:00:02.9]}
66... Ne3 {[%clk 0:00:06.9]} 67. Ke5 {[%clk 0:00:03.1]} 67... Nf5 {[%clk
0:00:07.2]} 68. Kd5 {[%clk 0:00:02.4]} 68... Ne3+ {[%clk 0:00:07.3]} 69. Ke6
{[%clk 0:00:02.8]} 69... Nf5 {[%clk 0:00:08.2]} 70. Kd7 {[%clk 0:00:02.9]} 70...
Ne3 {[%clk 0:00:08.2]} 71. Ke8 {[%clk 0:00:03.8]} 71... Nf5 {[%clk 0:00:08.5]}
72. Kd7 {[%clk 0:00:03.9]} 72... Ne3 {[%clk 0:00:08.7]} 73. Ke6 {[%clk
0:00:04.7]} 73... Nf5 {[%clk 0:00:09.3]} 74. Kd5 {[%clk 0:00:05]} 74... Ne3+
{[%clk 0:00:09.8]} 75. Kd4 {[%clk 0:00:05.8]} 75... Nf5+ {[%clk 0:00:10.7]} 76.
Kd3 {[%clk 0:00:06.2]} 76... Ne7 {[%clk 0:00:10.6]} 77. Ke2 {[%clk 0:00:06.6]}
77... Nf5 {[%clk 0:00:10.8]} 78. Kf3 {[%clk 0:00:07.5]} 78... Nd4+ {[%clk
0:00:11.2]} 79. Ke3 {[%clk 0:00:07.6]} 79... Nf5+ {[%clk 0:00:11.6]} 80. Kf2
{[%clk 0:00:08.3]} 80... Nd4 {[%clk 0:00:11.8]} 81. Nd2 {[%clk 0:00:08.7]} 81...
Nf5 {[%clk 0:00:11.9]} 82. Nf3 {[%clk 0:00:09.4]} 82... Kh6 {[%clk 0:00:11.6]}
83. Ne5 {[%clk 0:00:09.4]} 83... Nd6 {[%clk 0:00:11.4]} 84. Kf3 {[%clk
0:00:08.4]} 84... Nf5 {[%clk 0:00:11.6]} 85. Nc4 {[%clk 0:00:04.4]} 85... Nd4+
{[%clk 0:00:11.5]} 86. Ke4 {[%clk 0:00:04.3]} 86... Nf5 {[%clk 0:00:12.2]} 87.
Kf3 {[%clk 0:00:04.7]} 87... Nd4+ {[%clk 0:00:12.6]} 88. Kf2 {[%clk 0:00:05.3]}
88... Nf5 {[%clk 0:00:12.6]} 89. Ne3 {[%clk 0:00:06]} 89... Nd4 {[%clk
0:00:12.7]} 90. Nd1 {[%clk 0:00:03.7]} 90... Kg7 {[%clk 0:00:12.8]} 91. Ke3
{[%clk 0:00:03.6]} 91... Nf5+ {[%clk 0:00:13]} 92. Kf3 {[%clk 0:00:04.3]} 92...
Nd4+ {[%clk 0:00:13.3]} 93. Kf2 {[%clk 0:00:04.8]} 93... Nf5 {[%clk 0:00:13.2]}
94. Ne3 {[%clk 0:00:05.6]} 94... Nd4 {[%clk 0:00:13.5]} 95. Nd5 {[%clk
0:00:05.8]} 95... Kf7 {[%clk 0:00:13.5]} 96. Ke3 {[%clk 0:00:04.1]} 96... Nf5+
{[%clk 0:00:13.3]} 97. Kf3 {[%clk 0:00:04.8]} 97... Nd4+ {[%clk 0:00:13.8]} 98.
Kf2 {[%clk 0:00:05.4]} 98... Nf5 {[%clk 0:00:14.1]} 99. Nc3 {[%clk 0:00:05.9]}
99... Nd4 {[%clk 0:00:14]} 100. Ne4 {[%clk 0:00:06.4]} 100... Nf5 {[%clk
0:00:14.3]} 101. Nc3 {[%clk 0:00:05.4]} 101... Ke6 {[%clk 0:00:13.8]} 102. Ne2
{[%clk 0:00:06.1]} 102... Kf7 {[%clk 0:00:13.4]} 103. Kf3 {[%clk 0:00:05.6]}
103... Nh6 {[%clk 0:00:13.5]} 104. Ke4 {[%clk 0:00:05.7]} 104... Ng4 {[%clk
0:00:13.9]} 105. Kd5 {[%clk 0:00:04.4]} 105... Ne3+ {[%clk 0:00:13.5]} 106. Ke4
{[%clk 0:00:04.7]} 106... Nf5 {[%clk 0:00:14.4]} 107. Ke5 {[%clk 0:00:04.6]}
107... Ne3 {[%clk 0:00:14.3]} 108. Ke4 {[%clk 0:00:04.6]} 108... Nf5 {[%clk
0:00:11.5]} 109. Ke5 {[%clk 0:00:04.2]} 109... Ne3 {[%clk 0:00:11.4]} 110. Ke4
{[%clk 0:00:03.9]} 1/2-1/2

[Event "Early-Titled-Tuesday-Blitz-October-10-2023"]
[Site "Chess.com"]
[Date "2023.10.10"]
[Round "10"]
[White "Tsyhanchuk_Stanislav"]
[Black "cycygogne"]
[Result "1-0"]
[WhiteElo "2462"]
[BlackElo "2277"]
[TimeControl "180+1"]
[EndTime "9:49:20 PDT"]
[Termination "Tsyhanchuk_Stanislav won by resignation"]

1. e4 {[%clk 0:03:00.9]} 1... d5 {[%clk 0:02:59.8]} 2. exd5 {[%clk 0:02:59.8]}
2... Qxd5 {[%clk 0:03:00.7]} 3. Nf3 {[%clk 0:02:55.9]} 3... Bg4 {[%clk
0:02:58.2]} 4. Be2 {[%clk 0:02:54.6]} 4... Nf6 {[%clk 0:02:57.2]} 5. Nc3 {[%clk
0:02:53.9]} 5... Qd6 {[%clk 0:02:57.2]} 6. O-O {[%clk 0:02:52]} 6... e6 {[%clk
0:02:51.9]} 7. h3 {[%clk 0:02:51.2]} 7... Bh5 {[%clk 0:02:51.4]} 8. Nb5 {[%clk
0:02:50.6]} 8... Qd7 {[%clk 0:02:49.4]} 9. Ne5 {[%clk 0:02:33.9]} 9... Bxe2
{[%clk 0:02:41.4]} 10. Nxd7 {[%clk 0:02:32.7]} 10... Bxd1 {[%clk 0:02:39.6]} 11.
Nxf6+ {[%clk 0:02:32.4]} 11... gxf6 {[%clk 0:02:38.4]} 12. Nxc7+ {[%clk
0:02:30.1]} 12... Kd7 {[%clk 0:02:38.8]} 13. Nxa8 {[%clk 0:02:31]} 13... Bxc2
{[%clk 0:02:33]} 14. d3 {[%clk 0:02:27.4]} 14... Nc6 {[%clk 0:02:31.6]} 15. b3
{[%clk 0:02:25.3]} 15... Bg7 {[%clk 0:02:23.7]} 16. Bb2 {[%clk 0:02:15.7]} 16...
Rxa8 {[%clk 0:02:15.4]} 17. Rac1 {[%clk 0:02:13.1]} 17... Bxd3 {[%clk
0:02:12.6]} 18. Rfd1 {[%clk 0:02:11]} 18... Nb4 {[%clk 0:02:12.7]} 19. a3 {[%clk
0:02:10]} 1-0

[Event "Early-Titled-Tuesday-Blitz-October-10-2023"]
[Site "Chess.com"]
[Date "2023.10.10"]
[Round "10"]
[White "Ishowmoves57"]
[Black "Javylavilla"]
[Result "0-1"]
[WhiteElo "2168"]
[BlackElo "2365"]
[TimeControl "180+1"]
[EndTime "9:49:25 PDT"]
[Termination "Javylavilla won by resignation"]

1. e4 {[%clk 0:03:00.9]} 1... e6 {[%clk 0:02:59.1]} 2. d4 {[%clk 0:03:00.1]}
2... d5 {[%clk 0:02:58.6]} 3. Bd3 {[%clk 0:03:00.8]} 3... c5 {[%clk 0:02:53]} 4.
dxc5 {[%clk 0:02:55.8]} 4... Bxc5 {[%clk 0:02:51.2]} 5. exd5 {[%clk 0:02:56.2]}
5... exd5 {[%clk 0:02:47.5]} 6. Nf3 {[%clk 0:02:56.3]} 6... Nf6 {[%clk
0:02:46.8]} 7. O-O {[%clk 0:02:56.9]} 7... O-O {[%clk 0:02:47]} 8. c3 {[%clk
0:02:57.5]} 8... Bg4 {[%clk 0:02:46.7]} 9. h3 {[%clk 0:02:57.6]} 9... Bh5 {[%clk
0:02:46.4]} 10. Nbd2 {[%clk 0:02:57.6]} 10... Nc6 {[%clk 0:02:46]} 11. Nb3
{[%clk 0:02:57.8]} 11... Bb6 {[%clk 0:02:43.1]} 12. Bf4 {[%clk 0:02:56.5]} 12...
Ne4 {[%clk 0:02:25.5]} 13. Be2 {[%clk 0:02:41]} 13... Qf6 {[%clk 0:02:23.1]} 14.
Bh2 {[%clk 0:02:31.1]} 14... Rad8 {[%clk 0:02:22.1]} 15. Nfd2 {[%clk 0:02:11.4]}
15... Nxf2 {[%clk 0:02:18.8]} 16. Rxf2 {[%clk 0:02:02.2]} 16... Qxf2+ {[%clk
0:02:17.8]} 17. Kh1 {[%clk 0:02:02.8]} 17... Bxe2 {[%clk 0:02:14]} 0-1

[Event "Early-Titled-Tuesday-Blitz-October-10-2023"]
[Site "Chess.com"]
[Date "2023.10.10"]
[Round "10"]
[White "Alex_Sahakyan2006"]
[Black "jcibarra"]
[Result "0-1"]
[WhiteElo "2717"]
[BlackElo "2917"]
[TimeControl "180+1"]
[EndTime "9:50:17 PDT"]
[Termination "jcibarra won by resignation"]

1. d4 {[%clk 0:03:00.9]} 1... Nf6 {[%clk 0:02:59.6]} 2. Nf3 {[%clk 0:03:01]}
2... e6 {[%clk 0:02:59.9]} 3. Bf4 {[%clk 0:02:59.9]} 3... d5 {[%clk 0:02:59.3]}
4. e3 {[%clk 0:03:00.2]} 4... c5 {[%clk 0:02:59]} 5. Nbd2 {[%clk 0:03:00.3]}
5... Nc6 {[%clk 0:02:58.1]} 6. c3 {[%clk 0:03:00.4]} 6... cxd4 {[%clk
0:02:52.7]} 7. exd4 {[%clk 0:03:00.5]} 7... Nh5 {[%clk 0:02:52.8]} 8. Be3 {[%clk
0:02:57.7]} 8... Bd6 {[%clk 0:02:52.7]} 9. Ne5 {[%clk 0:02:50.3]} 9... g6 {[%clk
0:02:52.4]} 10. f4 {[%clk 0:02:48.1]} 10... f6 {[%clk 0:02:49.9]} 11. Nxc6
{[%clk 0:02:39.5]} 11... bxc6 {[%clk 0:02:49.6]} 12. g3 {[%clk 0:02:40.4]} 12...
O-O {[%clk 0:02:47.1]} 13. Bg2 {[%clk 0:02:39.4]} 13... Ba6 {[%clk 0:02:46.6]}
14. Bf1 {[%clk 0:02:30.7]} 14... Bxf1 {[%clk 0:02:26.9]} 15. Rxf1 {[%clk
0:02:31.6]} 15... Rb8 {[%clk 0:02:21.2]} 16. Qc2 {[%clk 0:02:31.2]} 16... Qa5
{[%clk 0:02:18.3]} 17. Nb3 {[%clk 0:02:28.8]} 17... Qa4 {[%clk 0:02:10.3]} 18.
Kd2 {[%clk 0:02:27.2]} 18... Ng7 {[%clk 0:02:05.7]} 19. Nc5 {[%clk 0:02:25.9]}
19... Qxc2+ {[%clk 0:01:48.1]} 20. Kxc2 {[%clk 0:02:26.8]} 20... Bxc5 {[%clk
0:01:47.6]} 21. dxc5 {[%clk 0:02:27.1]} 21... e5 {[%clk 0:01:45.9]} 22. fxe5
{[%clk 0:02:23.8]} 22... fxe5 {[%clk 0:01:45.9]} 23. Bh6 {[%clk 0:02:24.3]}
23... Rxf1 {[%clk 0:01:39.8]} 24. Rxf1 {[%clk 0:02:25.2]} 24... Nf5 {[%clk
0:01:39.7]} 25. Bg5 {[%clk 0:02:24]} 25... h6 {[%clk 0:01:33.6]} 26. Bf6 {[%clk
0:02:18.6]} 26... Ne3+ {[%clk 0:01:22.9]} 0-1